bitfinex/quotes_BTCUSD_20240731
["timestamp","ask_amount","ask_price","bid_price","bid_amount"]
[1722413229045,1.35678402,66263.0,66257.0,0.090739]
[1722413229246,1.12323804,66263.0,66257.0,0.090739]
[1722413229453,1.142994,66263.0,66257.0,0.090739]
[1722413229653,1.33503295,66263.0,66257.0,0.090739]
[1722413230083,1.34503295,66263.0,66257.0,0.090739]
[1722413230487,1.36803295,66263.0,66257.0,0.090739]
[1722413230684,1.37103295,66263.0,66257.0,0.090739]
[1722413231071,1.36803295,66263.0,66257.0,0.090739]
[1722413231407,1.36103295,66263.0,66257.0,0.090739]
[1722413231618,1.46173127,66263.0,66257.0,0.090739]
[1722413231798,1.76355827,66263.0,66257.0,0.090739]
[1722413232224,1.71815236,66263.0,66257.0,0.090739]
[1722413232430,1.85903141,66263.0,66257.0,0.009339]
[1722413232627,1.90750941,66263.0,66257.0,0.009339]
[1722413232831,1.86303141,66263.0,66257.0,0.009339]
[1722413233046,1.92574841,66263.0,66257.0,0.009339]
[1722413233305,1.85903141,66263.0,66257.0,0.009339]
[1722413233531,1.85603141,66263.0,66257.0,0.009339]
[1722413233804,1.86903141,66263.0,66257.0,0.009339]
[1722413234005,1.93413141,66263.0,66257.0,0.009339]
[1722413234236,1.92113141,66263.0,66257.0,0.009339]
[1722413234435,1.93413141,66263.0,66257.0,0.009339]
[1722413234818,1.94813141,66263.0,66257.0,0.009339]
[1722413235026,2.24995841,66263.0,66257.0,0.009339]
[1722413235229,2.01353141,66263.0,66257.0,0.009339]
[1722413235436,2.04396587,66263.0,66257.0,0.009339]
[1722413235636,1.99953141,66263.0,66257.0,0.009339]
[1722413235825,2.0139081,66263.0,66257.0,0.009339]
[1722413236413,1.9999081,66263.0,66257.0,0.009339]
[1722413236623,1.90320978,66263.0,66257.0,0.009339]
[1722413236796,1.91720978,66263.0,66257.0,0.009339]
[1722413237219,1.89020978,66263.0,66257.0,0.009339]
[1722413237419,1.90420978,66263.0,66257.0,0.009339]
[1722413237662,1.91820978,66263.0,66257.0,0.009339]
[1722413237888,1.90420978,66263.0,66257.0,0.009339]
[1722413238083,1.91672318,66263.0,66257.0,0.009339]
[1722413238268,1.87595404,66263.0,66257.0,0.009339]
[1722413238480,1.91655551,66263.0,66257.0,0.009339]
[1722413238854,2.06724983,66263.0,66257.0,0.009339]
[1722413239053,2.0672503,66263.0,66257.0,0.009339]
[1722413240308,1.87595404,66263.0,66257.0,0.009339]
[1722413240452,1.86195404,66263.0,66257.0,0.009339]
[1722413240848,1.86295404,66263.0,66257.0,0.009339]
[1722413242100,1.87595404,66263.0,66257.0,0.009339]
[1722413244023,1.87595404,66263.0,66262.0,0.006973]
[1722413244239,1.35702704,66263.0,66262.0,0.006973]
[1722413244389,1.33402704,66263.0,66262.0,0.084673]
[1722413245422,1.03220004,66263.0,66262.0,0.150573]
[1722413245699,0.781567,66263.0,66262.0,0.150573]
[1722413246102,0.80524564,66263.0,66262.0,0.150573]
[1722413246328,0.79124564,66263.0,66262.0,0.150573]
[1722413246711,0.80224564,66263.0,66262.0,0.150573]
[1722413247153,0.50041864,66263.0,66262.0,0.150573]
[1722413247349,0.04767864,66263.0,66262.0,0.150573]
[1722413247719,0.04767864,66263.0,66262.0,0.603321]
[1722413247720,0.03467864,66263.0,66262.0,0.603321]
[1722413247833,0.02367864,66263.0,66262.0,0.603321]
[1722413248040,0.03367864,66263.0,66262.0,0.301489]
[1722413248270,0.301792,66271.0,66263.0,0.150913]
[1722413248515,0.150902,66268.0,66263.0,0.150913]
[1722413248756,0.301796,66270.0,66262.0,0.30157]
[1722413248757,0.150905,66267.0,66262.0,0.30157]
[1722413249305,0.001,66263.0,66262.0,0.30357]
[1722413249467,0.009,66263.0,66262.0,0.30357]
[1722413249674,0.009,66263.0,66262.0,0.152655]
[1722413249875,0.001,66263.0,66262.0,0.152655]
[1722413250106,0.001,66263.0,66262.0,0.303571]
[1722413250302,0.001,66263.0,66262.0,0.154655]
[1722413250701,0.001,66263.0,66262.0,0.152655]
[1722413250919,0.150913,66263.0,66262.0,0.150655]
[1722413251121,0.151913,66263.0,66262.0,0.153655]
[1722413251523,0.45374,66263.0,66262.0,0.152655]
[1722413251721,0.45374,66263.0,66262.0,0.153655]
[1722413251722,0.45474,66263.0,66262.0,0.153655]
[1722413252196,0.45474,66263.0,66262.0,0.152655]
[1722413252197,0.45374,66263.0,66262.0,0.152655]
[1722413252405,0.45374,66263.0,66262.0,0.151655]
[1722413252406,0.151913,66263.0,66262.0,0.151655]
[1722413252593,0.45374,66263.0,66262.0,0.151655]
[1722413252799,0.7802434,66263.0,66262.0,0.152655]
[1722413253159,0.45374,66263.0,66262.0,0.150655]
[1722413253360,0.755567,66263.0,66262.0,0.150655]
[1722413253783,0.755567,66263.0,66262.0,0.152655]
[1722413253983,0.755567,66263.0,66262.0,0.1505256]
[1722413254435,0.45474,66263.0,66262.0,0.1515256]
[1722413255957,0.47841652,66263.0,66262.0,0.1515256]
[1722413256188,0.78024352,66263.0,66262.0,0.1515256]
[1722413256354,0.756567,66263.0,66262.0,0.1515256]
[1722413256847,0.756567,66263.0,66262.0,0.0856256]
[1722413257290,1.18437889,66263.0,66262.0,0.0856256]
[1722413257456,1.00098978,66263.0,66262.0,0.0856256]
[1722413257861,0.88255189,66263.0,66262.0,0.0856256]
[1722413259141,0.843367,66263.0,66262.0,0.0856256]
[1722413259356,0.88333308,66263.0,66262.0,0.0856256]
[1722413259733,0.88333308,66263.0,66262.0,0.0079256]
[1722413259973,1.45947055,66263.0,66262.0,0.0079256]
[1722413260179,1.61016487,66263.0,66262.0,0.0079256]
[1722413261305,1.52336487,66263.0,66262.0,0.0079256]
[1722413261511,1.56791071,66263.0,66262.0,0.0079256]
[1722413262411,1.5279632,66263.0,66262.0,0.0079256]
[1722413262641,1.52384698,66263.0,66262.0,0.0079256]
[1722413263221,1.52468698,66263.0,66262.0,0.0079256]
[1722413263417,1.5915336,66263.0,66262.0,0.0079256]
[1722413264069,1.5915336,66263.0,66262.0,0.00600914]
[1722413264245,1.56785617,66263.0,66262.0,0.00600914]
[1722413264452,1.59013837,66263.0,66262.0,0.00600914]
[1722413265277,1.43944405,66263.0,66262.0,0.00600914]
[1722413265625,1.30986704,66263.0,66262.0,0.00600914]
[1722413265829,1.34970269,66263.0,66262.0,0.00600914]
[1722413266066,1.34915269,66263.0,66262.0,0.00600914]
[1722413266473,1.41608581,66263.0,66262.0,0.00600914]
[1722413266684,1.34915269,66263.0,66262.0,0.00600914]
[1722413266861,1.41608548,66263.0,66262.0,0.00600914]
[1722413267240,1.43839686,66263.0,66262.0,0.00600914]
[1722413267465,1.37283239,66263.0,66262.0,0.00600914]
[1722413267664,1.37283239,66263.0,66262.0,0.08740914]
[1722413267665,1.4843562,66263.0,66262.0,0.08740914]
[1722413268068,1.37283239,66263.0,66262.0,0.08740914]
[1722413268994,1.37248875,66263.0,66262.0,0.08740914]
[1722413270342,1.37248875,66263.0,66262.0,0.00600914]
[1722413270494,1.46930713,66263.0,66262.0,0.00600914]
[1722413271301,1.44562743,66263.0,66262.0,0.00600914]
[1722413271717,1.34880905,66263.0,66262.0,0.00600914]
[1722413272311,1.34845348,66263.0,66262.0,0.00600914]
[1722413272550,1.49946578,66263.0,66262.0,0.00600914]
[1722413273163,1.57342695,66263.0,66262.0,0.00600914]
[1722413273382,1.42241465,66263.0,66262.0,0.00600914]
[1722413273946,1.42241465,66263.0,66262.0,0.00428433]
[1722413274211,1.44609394,66263.0,66262.0,0.00428433]
[1722413274430,1.59678826,66263.0,66262.0,0.00428433]
[1722413274629,1.59129394,66263.0,66262.0,0.00428433]
[1722413274828,1.48811465,66263.0,66262.0,0.00428433]
[1722413275265,1.42241465,66263.0,66262.0,0.00428433]
[1722413275575,1.42310106,66263.0,66262.0,0.00428433]
[1722413275817,1.34882503,66263.0,66262.0,0.00428433]
[1722413276016,1.04699803,66263.0,66262.0,0.00428433]
[1722413276219,0.89636499,66263.0,66262.0,0.07988433]
[1722413276872,0.89636499,66263.0,66262.0,0.00428433]
[1722413277279,1.19819199,66263.0,66262.0,0.00428433]
[1722413277502,0.89636499,66263.0,66262.0,0.00428433]
[1722413277646,1.19819199,66263.0,66262.0,0.00428433]
[1722413277847,1.32418119,66263.0,66262.0,0.00428433]
[1722413278054,1.34882503,66263.0,66262.0,0.00428433]
[1722413278250,1.4467167,66263.0,66262.0,0.00428433]
[1722413281300,1.5335167,66263.0,66262.0,0.00428433]
[1722413282127,1.53461623,66263.0,66262.0,0.00428433]
[1722413284041,1.53461623,66263.0,66262.0,0.002732]
[1722413285488,1.53585868,66263.0,66262.0,0.002732]
[1722413286730,1.51217953,66263.0,66262.0,0.002732]
[1722413290069,1.53585982,66263.0,66262.0,0.002732]
[1722413290488,1.29842678,66263.0,66262.0,0.151632]
[1722413290729,0.29294578,66263.0,66262.0,0.151632]
[1722413290962,0.67061102,66263.0,66262.0,0.151632]
[1722413291112,0.67061102,66263.0,66262.0,0.13766101]
[1722413291113,0.51938511,66263.0,66262.0,0.13766101]
[1722413291311,0.51910511,66263.0,66262.0,0.13766101]
[1722413291715,0.67033102,66263.0,66262.0,0.13766101]
[1722413291924,0.6296562,66263.0,66262.0,0.13766101]
[1722413292127,0.51937659,66263.0,66262.0,0.13766101]
[1722413292326,0.82120359,66263.0,66262.0,0.13766101]
[1722413293325,0.51937659,66263.0,66262.0,0.13766101]
[1722413293963,0.82120359,66263.0,66262.0,0.13766101]
[1722413294118,0.51937659,66263.0,66262.0,0.13766101]
[1722413294531,0.82120359,66263.0,66262.0,0.13766101]
[1722413294744,0.51937659,66263.0,66262.0,0.13766101]
[1722413295165,0.82120359,66263.0,66262.0,0.13766101]
[1722413295387,0.82133407,66263.0,66262.0,0.13766101]
[1722413295787,0.79765378,66263.0,66262.0,0.13766101]
[1722413296021,0.49582678,66263.0,66262.0,0.13766101]
[1722413296556,0.49582678,66263.0,66262.0,0.13857401]
[1722413296754,0.04391678,66263.0,66262.0,0.13857401]
[1722413297256,0.19482978,66263.0,66262.0,0.13857401]
[1722413297628,0.49665678,66263.0,66262.0,0.13857401]
[1722413298693,0.49626358,66263.0,66262.0,0.13857401]
[1722413299329,0.19443658,66263.0,66262.0,0.13857401]
[1722413299937,0.04352358,66263.0,66262.0,0.13857401]
[1722413300367,0.19443658,66263.0,66262.0,0.13857401]
[1722413300638,0.04352358,66263.0,66262.0,0.13857401]
[1722413300850,0.19443658,66263.0,66262.0,0.13857401]
[1722413301048,0.49626358,66263.0,66262.0,0.13857401]
[1722413301810,0.49565092,66263.0,66262.0,0.13857401]
[1722413302227,0.49565092,66263.0,66262.0,2.13857401]
[1722413302623,0.64693827,66263.0,66262.0,2.13857401]
[1722413303740,0.94876527,66263.0,66262.0,2.13857401]
[1722413304710,0.79747792,66263.0,66262.0,2.13857401]
[1722413305088,0.49565092,66263.0,66262.0,2.13857401]
[1722413305320,0.757407,66263.0,66262.0,2.13857401]
[1722413305520,0.49537414,66263.0,66262.0,2.13857401]
[1722413308618,0.45558,66263.0,66262.0,2.13857401]
[1722413308799,0.495513,66263.0,66262.0,2.13857401]
[1722413309414,0.193686,66263.0,66262.0,2.13857401]
[1722413309612,0.495513,66263.0,66262.0,2.13857401]
[1722413309819,0.193686,66263.0,66262.0,2.13857401]
[1722413310070,0.495513,66263.0,66262.0,2.13857401]
[1722413310694,0.042773,66263.0,66262.0,2.13857401]
[1722413310877,0.193686,66263.0,66262.0,2.13857401]
[1722413311834,0.19437367,66263.0,66262.0,2.13857401]
[1722413312873,0.49620067,66263.0,66262.0,2.13857401]
[1722413313235,0.49620067,66263.0,66262.0,2.083313]
[1722413313918,0.19437367,66263.0,66262.0,2.083313]
[1722413315356,0.04346067,66263.0,66262.0,2.083313]
[1722413316552,0.00284,66263.0,66262.0,2.083313]
[1722413316725,0.153753,66263.0,66262.0,2.083313]
[1722413317371,0.00284,66263.0,66262.0,2.083313]
[1722413317999,0.153753,66263.0,66262.0,2.083313]
[1722413318370,0.00284,66263.0,66262.0,2.083313]
[1722413318574,0.04400794,66263.0,66262.0,2.083313]
[1722413318784,0.00284,66263.0,66262.0,2.083313]
[1722413318986,0.153753,66263.0,66262.0,2.083313]
[1722413319146,0.00284,66263.0,66262.0,2.083313]
[1722413320506,0.153753,66263.0,66262.0,2.083313]
[1722413320914,0.00284,66263.0,66262.0,2.083313]
[1722413322007,0.153753,66263.0,66262.0,2.083313]
[1722413322611,0.45558,66263.0,66262.0,2.083313]
[1722413324374,1.123734,66263.0,66262.0,2.000913]
[1722413324526,1.205134,66263.0,66262.0,2.000913]
[1722413324729,1.3256474,66263.0,66262.0,2.000913]
[1722413325136,1.205134,66263.0,66262.0,2.000913]
[1722413325959,1.35576704,66263.0,66262.0,2.000913]
[1722413328258,1.75759404,66263.0,66262.0,2.000913]
[1722413330879,1.87277084,66263.0,66262.0,2.000913]
[1722413331796,1.87298559,66263.0,66262.0,2.000913]
[1722413333128,1.88217622,66263.0,66262.0,2.000913]
[1722413334976,2.03287054,66263.0,66262.0,2.000913]
[1722413335157,2.35769754,66263.0,66262.0,2.000913]
[1722413335455,2.3582494,66263.0,66262.0,2.000913]
[1722413336312,2.3562494,66263.0,66262.0,2.000913]
[1722413336518,2.3572494,66263.0,66262.0,2.000913]
[1722413338664,2.35798576,66263.0,66262.0,2.000913]
[1722413341860,2.24930599,66263.0,66262.0,2.000913]
[1722413342066,2.36483312,66263.0,66262.0,2.000913]
[1722413342468,2.37383312,66263.0,66262.0,2.000913]
[1722413343631,2.70566012,66263.0,66262.0,1.74348181]
[1722413343859,2.68566012,66263.0,66262.0,1.71648181]
[1722413344066,2.68566012,66263.0,66262.0,1.54200681]
[1722413344067,2.86466012,66263.0,66262.0,1.54200681]
[1722413344271,2.85566012,66263.0,66262.0,1.50302681]
[1722413344485,2.85566012,66263.0,66262.0,1.49137391]
[1722413344693,2.85566012,66263.0,66262.0,1.41928858]
[1722413344904,2.84766012,66263.0,66262.0,1.38910558]
[1722413345109,2.84766012,66263.0,66262.0,1.20514358]
[1722413345313,3.61122812,66263.0,66262.0,0.77710258]
[1722413345520,3.60222812,66263.0,66262.0,0.77710258]
[1722413345702,3.69912812,66263.0,66262.0,0.77710258]
[1722413345910,3.71312812,66263.0,66262.0,0.77710258]
[1722413346111,3.70312812,66263.0,66262.0,0.71673658]
[1722413346313,3.70312812,66263.0,66262.0,0.62618758]
[1722413346455,3.70312812,66263.0,66262.0,0.61218759]
[1722413346456,2.69666012,66263.0,66262.0,0.61218759]
[1722413346657,2.76956012,66263.0,66262.0,0.61218759]
[1722413346868,2.76956012,66263.0,66262.0,0.49145559]
[1722413347177,2.88586012,66263.0,66262.0,0.44766258]
[1722413347376,2.91986012,66263.0,66262.0,0.44766258]
[1722413348378,2.81733299,66263.0,66262.0,0.32693058]
[1722413348586,2.93486434,66263.0,66262.0,0.29674758]
[1722413348790,3.09386434,66263.0,66262.0,0.018047]
[1722413349004,3.09386434,66263.0,66245.0,0.009339]
[1722413349005,1.804777,66246.0,66245.0,0.009339]
[1722413349225,2.33704895,66246.0,66245.0,0.009339]
[1722413350794,2.35104895,66246.0,66245.0,0.009339]
[1722413351008,2.35104895,66246.0,66216.0,0.14]
[1722413351009,2.020852,66235.0,66216.0,0.14]
[1722413351223,1.91096895,66235.0,66216.0,0.14]
[1722413351420,2.01096895,66235.0,66224.0,0.0825]
[1722413351627,2.03322518,66235.0,66216.0,0.0602]
[1722413351841,2.03322518,66235.0,66220.0,0.0752]
[1722413352909,2.04322518,66235.0,66220.0,0.0752]
[1722413353986,2.05422518,66235.0,66216.0,0.1396]
[1722413354142,2.2049195,66235.0,66216.0,0.1396]
[1722413354806,2.17333925,66235.0,66216.0,0.1396]
[1722413355010,2.17333925,66235.0,66222.0,2.8e-07]
[1722413355011,0.01,66223.0,66222.0,2.8e-07]
[1722413355216,1.5116022,66223.0,66222.0,2.8e-07]
[1722413355386,1.95900609,66223.0,66222.0,2.8e-07]
[1722413355591,2.336267,66223.0,66222.0,2.8e-07]
[1722413355792,1.889858,66223.0,66222.0,2.8e-07]
[1722413356000,2.04055232,66223.0,66222.0,2.8e-07]
[1722413356201,2.05455232,66223.0,66222.0,2.8e-07]
[1722413356601,2.06855232,66223.0,66222.0,2.8e-07]
[1722413356807,1.347649,66223.0,66222.0,2.8e-07]
[1722413357007,0.30163704,66223.0,66222.0,2.8e-07]
[1722413357254,0.65899105,66223.0,66222.0,2.8e-07]
[1722413357443,0.97500005,66223.0,66222.0,2.8e-07]
[1722413357599,1.26300905,66223.0,66222.0,2.8e-07]
[1722413357997,1.26300783,66223.0,66222.0,2.8e-07]
[1722413358203,1.36300783,66223.0,66222.0,2.8e-07]
[1722413358719,1.52270215,66223.0,66222.0,2.8e-07]
[1722413358952,1.58118256,66223.0,66222.0,2.8e-07]
[1722413359097,1.59518256,66223.0,66222.0,2.8e-07]
[1722413359296,1.40000783,66223.0,66222.0,2.8e-07]
[1722413359544,1.37200783,66223.0,66222.0,2.8e-07]
[1722413359718,1.38500783,66223.0,66222.0,2.8e-07]
[1722413359948,1.39700783,66223.0,66222.0,2.8e-07]
[1722413360682,1.07199883,66223.0,66222.0,2.8e-07]
[1722413360863,1.03065504,66223.0,66222.0,0.06610028]
[1722413361105,1.03065504,66223.0,66222.0,2.8e-07]
[1722413361518,1.32574936,66223.0,66222.0,2.8e-07]
[1722413361725,1.18134936,66223.0,66222.0,2.8e-07]
[1722413361934,1.48335836,66223.0,66222.0,2.8e-07]
[1722413362543,1.52462408,66223.0,66222.0,2.8e-07]
[1722413363728,1.37392976,66223.0,66222.0,2.8e-07]
[1722413363921,0.15103,66212.0,66211.0,0.0005]
[1722413364299,0.45309,66212.0,66211.0,0.0005]
[1722413365473,0.15103,66212.0,66211.0,0.0005]
[1722413365699,0.15203,66212.0,66211.0,0.143]
[1722413366070,0.45409,66212.0,66211.0,0.143]
[1722413367341,0.15203,66212.0,66211.0,0.143]
[1722413367740,0.001,66212.0,66211.0,0.143]
[1722413368555,0.001,66212.0,66211.0,0.294032]
[1722413368787,0.001,66212.0,66211.0,0.14602012]
[1722413368995,0.001,66212.0,66211.0,0.143]
[1722413369486,0.15203,66212.0,66211.0,0.143]
[1722413369633,0.001,66212.0,66211.0,0.143]
[1722413369857,0.151025,66214.0,66211.0,0.143]
[1722413370053,0.001,66212.0,66211.0,0.144]
[1722413370615,0.002,66212.0,66211.0,0.144]
[1722413370818,0.001,66212.0,66211.0,0.144]
[1722413371572,0.001,66212.0,66211.0,0.29805228]
[1722413371774,0.519192,66227.0,66212.0,0.312059]
[1722413371775,0.301992,66227.0,66212.0,0.312059]
[1722413371951,0.151008,66222.0,66216.0,0.1463]
[1722413372151,0.251009,66221.0,66217.0,0.00302005]
[1722413372379,0.1,66221.0,66218.0,0.1437]
[1722413372739,0.25101,66221.0,66215.0,0.00302008]
[1722413372946,0.006,66222.0,66218.0,0.291015]
[1722413373143,0.006,66222.0,66220.0,0.0633]
[1722413373343,0.006,66222.0,66221.0,0.0833]
[1722413373553,0.151002,66224.0,66221.0,0.0833]
[1722413373788,0.151005,66223.0,66221.0,0.0833]
[1722413373994,0.1,66226.0,66221.0,0.0833]
[1722413374188,0.151004,66224.0,66221.0,0.0833]
[1722413374392,0.151005,66223.0,66221.0,0.0833]
[1722413375338,0.301981,66230.0,66221.0,0.0833]
[1722413375486,0.301981,66230.0,66222.0,0.0030198]
[1722413375487,0.151001,66225.0,66222.0,0.0030198]
[1722413375683,0.001,66223.0,66221.0,0.0933]
[1722413375891,0.001,66223.0,66221.0,0.0883]
[1722413376095,0.001,66223.0,66221.0,0.09131987]
[1722413376392,0.001,66223.0,66221.0,0.09431987]
[1722413376600,0.001,66223.0,66222.0,0.0688]
[1722413377400,0.001,66223.0,66222.0,0.07181976]
[1722413377814,0.001,66223.0,66222.0,0.06781976]
[1722413378236,0.002,66223.0,66222.0,0.06781976]
[1722413378671,0.001,66223.0,66222.0,0.06781976]
[1722413379071,0.002,66223.0,66222.0,0.07281976]
[1722413379484,0.001,66223.0,66222.0,0.07281976]
[1722413379688,0.002,66223.0,66222.0,0.08081976]
[1722413381080,0.00162,66223.0,66222.0,0.08081976]
[1722413381292,0.00162,66223.0,66222.0,0.15801976]
[1722413381486,0.00162,66223.0,66222.0,0.30902676]
[1722413383869,0.00162,66223.0,66222.0,0.61104076]
[1722413384072,0.00162,66223.0,66222.0,0.30902676]
[1722413384283,0.00162,66223.0,66222.0,0.61104076]
[1722413385029,0.00162,66223.0,66222.0,0.91305476]
[1722413385253,0.00162,66223.0,66222.0,0.61104076]
[1722413389118,0.00162,66223.0,66222.0,0.608021]
[1722413389319,0.04632588,66223.0,66222.0,0.155]
[1722413389522,0.00162,66223.0,66222.0,0.306007]
[1722413390030,0.09103177,66223.0,66222.0,0.155]
[1722413390165,0.09103177,66223.0,66222.0,0.306007]
[1722413390974,0.00162,66223.0,66222.0,0.306007]
[1722413391225,0.09107933,66223.0,66222.0,0.16384348]
[1722413391595,0.00162,66223.0,66222.0,0.16384348]
[1722413392811,0.00162,66223.0,66222.0,0.155]
[1722413393297,0.11344417,66223.0,66222.0,0.155]
[1722413393512,0.26444817,66223.0,66222.0,0.155]
[1722413394075,0.56645717,66223.0,66222.0,0.155]
[1722413394276,0.56645717,66223.0,66222.0,0.013]
[1722413394277,0.92803603,66223.0,66222.0,0.013]
[1722413394488,0.49181058,66223.0,66222.0,0.013]
[1722413395784,0.49184835,66223.0,66222.0,0.013]
[1722413396190,0.49268835,66223.0,66222.0,0.013]
[1722413397609,0.49298128,66223.0,66222.0,0.013]
[1722413398056,0.79499028,66223.0,66222.0,0.013]
[1722413400142,0.49298128,66223.0,66222.0,0.013]
[1722413400767,0.79499028,66223.0,66222.0,0.013]
[1722413400967,0.820982,66223.0,66222.0,0.013]
[1722413401117,1.16034262,66223.0,66222.0,0.013]
[1722413401321,1.31088823,66223.0,66222.0,0.013]
[1722413401723,1.46152127,66223.0,66222.0,0.013]
[1722413401901,1.61221559,66223.0,66222.0,0.013]
[1722413402300,1.31088823,66223.0,66222.0,0.013]
[1722413402529,1.31088823,66223.0,66222.0,0.008]
[1722413402530,1.31026823,66223.0,66222.0,0.008]
[1722413402702,1.16846823,66223.0,66222.0,0.008]
[1722413403312,0.453061,66216.0,66215.0,0.00302009]
[1722413403501,0.453069,66215.0,66214.0,0.0648]
[1722413403730,0.79246662,66215.0,66214.0,0.0648]
[1722413404190,0.79289864,66215.0,66214.0,0.0648]
[1722413404712,0.79289864,66215.0,66214.0,0.009]
[1722413404713,0.79389864,66215.0,66214.0,0.009]
[1722413406195,0.79489864,66215.0,66214.0,0.013]
[1722413406574,0.79489864,66215.0,66214.0,0.90612216]
[1722413406575,0.03978364,66215.0,66214.0,0.90612216]
[1722413406784,0.1139963,66215.0,66214.0,0.3777]
[1722413406991,0.09160064,66215.0,66214.0,0.528725]
[1722413407220,0.002,66215.0,66214.0,0.840775]
[1722413407374,0.06920308,66215.0,66214.0,1.142825]
[1722413407579,0.04680371,66215.0,66214.0,1.61550804]
[1722413407799,0.002,66215.0,66214.0,1.61550804]
[1722413408597,0.001,66215.0,66214.0,1.61350804]
[1722413408807,0.001,66215.0,66214.0,2.07485804]
[1722413409039,0.00084,66223.0,66222.0,1.089049]
[1722413409244,0.00084,66223.0,66222.0,1.59328204]
[1722413410299,0.00184,66223.0,66222.0,1.59828204]
[1722413410476,0.00284,66223.0,66222.0,1.61228204]
[1722413411047,0.00284,66223.0,66222.0,1.89229604]
[1722413411254,0.00284,66223.0,66222.0,1.91429604]
[1722413411602,0.00284,66223.0,66222.0,2.07359604]
[1722413411984,0.00284,66223.0,66222.0,2.09659604]
[1722413413605,0.06721541,66237.0,66223.0,0.01]
[1722413413606,0.07534716,66232.0,66223.0,0.01]
[1722413413728,0.07534716,66225.0,66222.0,0.1554]
[1722413414210,0.07534716,66225.0,66222.0,0.16432993]
[1722413414411,0.04481027,66223.0,66222.0,0.1554]
[1722413414575,0.04481027,66224.0,66222.0,0.1554]
[1722413414783,0.04477245,66223.0,66222.0,0.620421]
[1722413414981,0.04477245,66223.0,66222.0,0.79105404]
[1722413415159,0.04477245,66228.0,66227.0,0.01]
[1722413415385,0.04477245,66230.0,66229.0,0.150991]
[1722413415570,0.04477245,66230.0,66229.0,0.45599249]
[1722413415790,0.04477245,66230.0,66229.0,0.452973]
[1722413416394,0.04477245,66230.0,66229.0,0.150991]
[1722413416598,0.04477245,66230.0,66229.0,0.452973]
[1722413416814,0.06716107,66232.0,66231.0,0.150986]
[1722413418011,0.06716107,66232.0,66231.0,0.164986]
[1722413418645,0.06716107,66232.0,66231.0,0.014]
[1722413418855,0.11193513,66232.0,66231.0,0.014]
[1722413419062,0.11193513,66232.0,66231.0,0.026]
[1722413419387,0.0015542,66236.0,66231.0,0.026]
[1722413420165,0.13430645,66237.0,66231.0,0.026]
[1722413420304,0.00128049,66236.0,66231.0,0.014]
[1722413420500,0.00128049,66236.0,66231.0,0.022]
[1722413420951,0.13430645,66237.0,66231.0,0.008]
[1722413421206,0.0015542,66236.0,66231.0,0.008]
[1722413421417,0.13430645,66237.0,66231.0,0.017]
[1722413421626,0.11191988,66234.0,66233.0,0.150981]
[1722413421986,0.1119209,66234.0,66233.0,0.150981]
[1722413422327,0.13430645,66240.0,66234.0,0.150979]
[1722413422762,0.150969,66239.0,66232.0,0.150983]
[1722413422983,0.08953147,66233.0,66232.0,0.150983]
[1722413423414,0.08952761,66233.0,66231.0,0.150986]
[1722413423761,0.08952761,66233.0,66231.0,0.150985]
[1722413423929,0.08952761,66233.0,66232.0,0.150984]
[1722413424108,0.08952761,66233.0,66232.0,0.452952]
[1722413424338,0.08952761,66233.0,66232.0,0.466952]
[1722413425433,0.08952761,66234.0,66233.0,0.89961]
[1722413425636,0.04476366,66235.0,66234.0,0.313959]
[1722413425842,0.04476366,66236.0,66235.0,0.754887]
[1722413426040,0.04476366,66238.0,66237.0,0.150973]
[1722413426241,0.04476366,66238.0,66237.0,0.754865]
[1722413426242,0.06714346,66238.0,66237.0,0.754865]
[1722413426444,0.291539,66252.0,66239.0,0.301936]
[1722413426630,0.06713734,66243.0,66242.0,0.301918]
[1722413426850,0.06713734,66243.0,66242.0,0.533379]
[1722413427048,0.06713734,66244.0,66243.0,0.452877]
[1722413427272,0.06713734,66244.0,66243.0,0.150959]
[1722413427471,0.06713734,66245.0,66243.0,0.150959]
[1722413427645,0.06713734,66245.0,66244.0,0.150957]
[1722413428488,0.06713734,66246.0,66244.0,0.150957]
[1722413428918,0.06713734,66246.0,66245.0,0.150954]
[1722413429118,0.06713734,66246.0,66243.0,0.301917]
[1722413429364,0.06713734,66246.0,66244.0,0.150954]
[1722413429567,0.04473391,66245.0,66244.0,0.154954]
[1722413429715,0.06713734,66246.0,66244.0,0.154954]
[1722413429920,0.08946954,66248.0,66243.0,0.158959]
[1722413430087,0.08946954,66248.0,66242.0,0.0805]
[1722413430088,0.04473406,66244.0,66242.0,0.0805]
[1722413430286,0.04473406,66244.0,66243.0,0.003]
[1722413430529,0.06710215,66245.0,66244.0,0.005]
[1722413430709,0.06710215,66245.0,66243.0,0.003]
[1722413430903,0.04473391,66244.0,66243.0,0.003]
[1722413431116,0.04473391,66244.0,66243.0,0.006]
[1722413431698,0.04473391,66244.0,66241.0,0.150963]
[1722413431913,0.04473391,66244.0,66243.0,0.001]
[1722413432302,0.04473391,66244.0,66242.0,0.150961]
[1722413432627,0.04473391,66244.0,66243.0,0.005]
[1722413433056,0.212648,66248.0,66242.0,0.150961]
[1722413433297,0.04473408,66245.0,66239.0,0.301936]
[1722413433642,0.04473408,66245.0,66242.0,0.005]
[1722413434250,0.04473408,66245.0,66243.0,0.008]
[1722413434991,0.04473408,66245.0,66241.0,0.150963]
[1722413435191,0.04473408,66245.0,66242.0,0.001]
[1722413435596,0.04473408,66245.0,66241.0,0.150963]
[1722413436058,0.04473408,66245.0,66243.0,0.004]
[1722413436302,0.04473408,66246.0,66243.0,0.004]
[1722413436472,0.04473408,66246.0,66243.0,0.150958]
[1722413436674,0.04473408,66246.0,66242.0,0.006]
[1722413436829,0.04473408,66246.0,66244.0,0.150956]
[1722413437035,0.04473408,66246.0,66243.0,0.150957]
[1722413437580,0.04473408,66247.0,66243.0,0.155957]
[1722413438106,0.04473408,66247.0,66243.0,0.150957]
[1722413438543,0.04473408,66247.0,66243.0,0.153957]
[1722413438921,0.04473408,66247.0,66244.0,0.005]
[1722413439357,0.19568808,66245.0,66244.0,0.005]
[1722413439559,0.29454916,66245.0,66244.0,0.005]
[1722413439762,0.210954,66245.0,66244.0,0.005]
[1722413439964,0.92064586,66245.0,66244.0,0.005]
[1722413440137,0.61873686,66245.0,66244.0,0.005]
[1722413440502,0.55290939,66245.0,66244.0,0.005]